bitfinex/quotes_SOLUSD_20241125
["timestamp","ask_amount","ask_price","bid_price","bid_amount"]
[1732538438937,20.0,250.45,250.32,3.5953]
[1732538438938,3.9929,250.44,250.32,3.5953]
[1732538439343,23.776884,250.43,250.32,3.5953]
[1732538439624,3.9924,250.48,250.36,7.94103202]
[1732538439844,3.9924,250.48,250.37,7.94103202]
[1732538440650,3.9913,250.54,250.4,7.94103202]
[1732538440834,9.9777,250.56,250.41,3.5941]
[1732538441524,9.9777,250.56,250.39,3.5942]
[1732538441723,20.0,250.53,250.32,28.9883]
[1732538441942,23.776884,250.48,250.33,7.94103202]
[1732538442147,23.776884,250.48,250.32,20.0]
[1732538442349,23.776884,250.48,250.34,20.0]
[1732538442843,23.776884,250.48,250.31,31.53653202]
[1732538443154,23.776884,250.46,250.31,31.53653202]
[1732538443921,20.0,250.45,250.31,31.53653202]
[1732538444146,20.0,250.45,250.33,7.94103202]
[1732538444340,23.776884,250.44,250.31,23.5955]
[1732538444546,23.776884,250.44,250.31,36.01499038]
[1732538447158,27.769984,250.44,250.31,36.01499038]
[1732538447842,23.776884,250.44,250.32,12.41949038]
[1732538448637,23.776884,250.5,250.33,12.41949038]
[1732538448933,20.0,250.47,250.34,12.41949038]
[1732538449138,23.9926,250.47,250.35,16.01439038]
[1732538449341,23.9926,250.47,250.37,12.41949038]
[1732538449543,23.9926,250.47,250.36,12.41949038]
[1732538450057,23.9926,250.47,250.35,3.5949]
[1732538450960,23.776884,250.46,250.35,3.5949]
[1732538451149,3.9928,250.45,250.35,3.5949]
[1732538452257,3.9928,250.45,250.32,12.41949038]
[1732538452561,3.9928,250.45,250.32,3.5953]
[1732538452952,3.9928,250.45,250.32,16.01479038]
[1732538454243,3.9928,250.45,250.31,21.40829038]
[1732538454441,23.776884,250.44,250.28,3.5959]
[1732538454855,23.776884,250.44,250.29,12.41949038]
[1732538455448,23.776884,250.44,250.3,12.41949038]
[1732538455754,23.776884,250.44,250.31,32.41949038]
[1732538455956,27.769784,250.44,250.32,3.5953]
[1732538458955,20.0,250.37,250.22,3.5968]
[1732538459142,20.0,250.37,250.23,12.41949038]
[1732538459456,20.0,250.37,250.24,12.41949038]
[1732538459855,13.9753,250.44,250.22,12.5888]
[1732538459856,20.0,250.41,250.28,12.41949038]
[1732538460058,3.9929,250.44,250.29,12.41949038]
[1732538460253,23.776884,250.43,250.29,12.41949038]
[1732538460457,23.776884,250.43,250.31,12.41949038]
[1732538460869,23.776884,250.43,250.32,12.41949038]
[1732538461069,20.0,250.42,250.33,3.5952]
[1732538461470,3.9929,250.44,250.33,3.5952]
[1732538461655,3.9929,250.44,250.33,16.01469038]
[1732538462371,3.9924,250.48,250.37,12.41949038]
[1732538462757,3.9924,250.48,250.36,12.41949038]
[1732538463368,9.9795,250.52,250.37,3.5946]
[1732538463565,23.776884,250.51,250.37,3.5946]
[1732538463961,20.0,250.53,250.37,16.01409038]
[1732538464168,3.9913,250.54,250.4,12.41949038]
[1732538465268,9.9777,250.56,250.4,12.41949038]
[1732538465568,20.0,250.53,250.37,3.5946]
[1732538465773,23.776884,250.48,250.37,3.5946]
[1732538466675,3.9924,250.47,250.34,3.5951]
[1732538467569,3.9924,250.47,250.34,12.41949038]
[1732538468451,3.9924,250.47,250.33,8.9879]
[1732538468452,3.9924,250.47,250.33,21.40739038]
[1732538469170,3.9924,250.47,250.33,25.00259038]
[1732538469848,3.9924,250.47,250.35,12.41949038]
[1732538470070,23.776884,250.48,250.37,12.41949038]
[1732538470277,3.9918,250.51,250.4,12.41949038]
[1732538470576,3.9912,250.55,250.42,12.41949038]
[1732538470753,3.9912,250.55,250.43,12.41949038]
[1732538470954,3.9912,250.55,250.42,12.41949038]
[1732538471162,3.9912,250.55,250.41,12.41949038]
[1732538471599,3.9912,250.55,250.39,20.0]
[1732538471777,3.9912,250.55,250.41,12.41949038]
[1732538472078,3.991,250.56,250.42,3.5939]
[1732538472452,23.776884,250.55,250.42,3.5939]
[1732538473685,3.9913,250.54,250.4,3.5942]
[1732538474185,23.776884,250.53,250.4,3.5942]
[1732538475279,23.776884,250.51,250.38,32.41949038]
[1732538476283,23.776884,250.51,250.38,20.0]
[1732538476471,23.776884,250.51,250.39,3.5943]
[1732538476472,3.992,250.5,250.39,3.5943]
[1732538476670,23.776884,250.49,250.39,3.5943]
[1732538476869,23.776884,250.49,250.36,20.0]
[1732538477074,23.776884,250.49,250.32,12.5837]
[1732538477275,20.0,250.46,250.32,12.5837]
[1732538477680,23.776884,250.45,250.32,3.5953]
[1732538478174,20.0,250.42,250.32,3.5953]
[1732538478369,23.9934,250.42,250.29,3.5958]
[1732538478572,3.9934,250.42,250.29,3.5958]
[1732538478776,23.9934,250.42,250.29,3.5958]
[1732538479172,3.9934,250.42,250.3,12.41949038]
[1732538479490,27.769484,250.46,250.3,12.41949038]
[1732538479973,27.769484,250.46,250.31,12.41949038]
[1732538480380,27.769484,250.46,250.32,3.5953]
[1732538481288,27.769484,250.46,250.3,12.41949038]
[1732538481474,27.769484,250.46,250.31,16.01499038]
[1732538481674,27.769484,250.46,250.32,12.41949038]
[1732538482591,27.769484,250.46,250.33,16.01469038]
[1732538482790,27.769484,250.46,250.34,12.41949038]
[1732538482976,27.769484,250.46,250.33,3.5952]
[1732538483879,37.751084,250.46,250.33,3.5952]
[1732538484869,37.751084,250.46,250.32,3.5953]
[1732538485267,20.0,250.39,250.24,37.416329]
[1732538485466,23.776884,250.38,250.21,49.83581938]
[1732538485676,23.776884,250.38,250.23,3.5965]
[1732538486669,23.776884,250.34,250.21,3.5968]
[1732538486998,23.776884,250.32,250.21,3.5968]
[1732538488077,27.771884,250.32,250.21,3.5968]
[1732538489688,27.771884,250.32,250.19,3.5971]
[1732538490100,20.0,250.29,250.19,3.5971]
[1732538490289,23.776884,250.28,250.19,3.5971]
[1732538490977,27.772484,250.28,250.17,3.5974]
[1732538491778,27.772484,250.28,250.17,16.01689038]
[1732538492970,23.776884,250.29,250.19,3.5972]
[1732538493286,23.776884,250.29,250.19,16.01669038]
[1732538493682,20.0,250.33,250.21,12.41949038]
[1732538493885,23.776884,250.32,250.2,12.41949038]
[1732538494198,23.776884,250.32,250.19,3.5972]
[1732538494576,23.776884,250.32,250.2,12.41949038]
[1732538494993,27.771884,250.32,250.21,3.5969]
[1732538495678,27.771884,250.32,250.16,12.41949038]
[1732538495877,23.776884,250.28,250.17,3.5974]
[1732538496878,23.776884,250.26,250.17,3.5974]
[1732538497482,23.776884,250.26,250.15,4.5977]
[1732538498100,23.776884,250.26,250.15,17.01719038]
[1732538498307,23.776884,250.26,250.16,12.41949038]
[1732538498677,23.776884,250.26,250.17,3.5975]
[1732538498879,20.0,250.29,250.17,3.5975]
[1732538498880,27.772384,250.28,250.17,16.01699038]
[1732538499298,23.776884,250.28,250.18,12.41949038]
[1732538499503,23.776884,250.28,250.19,12.41949038]
[1732538499688,23.776884,250.28,250.2,12.41949038]
[1732538500293,3.9947,250.33,250.21,12.41949038]
[1732538500585,3.9947,250.33,250.15,1.0]
[1732538500586,13.9776,250.4,250.25,12.41949038]
[1732538501905,23.776884,250.36,250.25,12.41949038]
[1732538502205,3.9936,250.4,250.28,12.41949038]
[1732538502703,13.9755,250.44,250.28,16.01529038]
[1732538503407,20.0,250.41,250.28,16.01529038]
[1732538503704,3.9936,250.4,250.28,16.01529038]
[1732538504478,23.776884,250.39,250.28,16.01529038]
[1732538505103,27.770484,250.4,250.28,16.01529038]
[1732538505307,23.776884,250.36,250.28,16.01529038]
[1732538505490,23.776884,250.39,250.28,16.01529038]
[1732538505892,23.776884,250.39,250.28,3.5958]
[1732538506298,20.0,250.36,250.18,3.5974]
[1732538506621,43.776884,250.35,250.18,3.5974]
[1732538507402,20.0,250.3,250.18,3.5974]
[1732538507610,23.776884,250.29,250.18,3.5974]
[1732538508502,3.9954,250.29,250.18,3.5974]
[1732538509303,3.9954,250.29,250.16,15.3016]
[1732538509304,20.0,250.28,250.16,9.905]
[1732538509689,20.0,250.28,250.16,3.5975]
[1732538510988,3.9956,250.27,250.16,3.5975]
[1732538516700,13.9848,250.27,250.15,4.5978]
[1732538516900,20.0,250.24,250.15,4.5978]
[1732538517510,3.9956,250.27,250.15,4.5978]
[1732538518012,20.0,250.24,250.15,1.0]
[1732538518417,20.0,250.24,250.15,4.5978]
[1732538518596,20.0,250.28,250.15,4.5978]
[1732538519097,3.9952,250.3,250.15,4.5978]
[1732538520413,3.9952,250.3,250.17,3.5975]
[1732538521319,3.9952,250.3,250.18,23.776884]
[1732538522014,13.9804,250.35,250.19,3.5972]
[1732538522500,20.0,250.32,250.19,3.5972]
[1732538522821,20.0,250.32,250.17,3.5974]
[1732538523324,20.0,250.31,250.17,3.5974]
[1732538523822,3.9952,250.3,250.17,3.5974]
[1732538524222,20.0,250.29,250.17,3.5974]
[1732538525321,3.9955,250.28,250.17,3.5974]
[1732538525720,20.0,250.25,250.15,1.0]
[1732538527010,20.0,250.25,250.15,4.5978]
[1732538527324,3.9961,250.24,250.15,4.5978]
[1732538528025,3.9961,250.24,250.15,1.0]
[1732538528814,12.09982976,250.25,250.15,1.0]
[1732538530319,37.763384,250.24,250.15,1.0]
[1732538530835,20.0,250.21,250.15,1.0]
[1732538531329,13.9865,250.24,250.15,1.0]
[1732538531661,3.9961,250.24,250.15,1.0]
[1732538532134,3.9961,250.24,250.15,4.5978]
[1732538533328,3.9961,250.24,250.15,1.0]
[1732538533833,20.0,250.21,250.15,1.0]
[1732538535432,3.9968,250.2,250.15,1.0]
[1732538539935,20.0,250.26,250.15,1.0]
[1732538540236,20.0,250.25,250.15,1.0]
[1732538540434,13.9845,250.28,250.15,4.5978]
[1732538540836,3.9955,250.28,250.15,17.01729038]
[1732538541028,3.9955,250.28,250.15,4.5978]
[1732538541744,20.0,250.26,250.15,4.5978]
[1732538542316,3.996,250.25,250.15,4.5978]
[1732538544619,3.996,250.25,250.15,1.0]
[1732538545229,20.0,250.23,250.15,1.0]
[1732538545941,3.996,250.25,250.15,4.5977]
[1732538546116,3.996,250.25,250.16,6.4453]
[1732538546545,9.9882,250.3,250.17,15.1596]
[1732538546731,9.9882,250.3,250.17,18.757]
[1732538547838,20.0,250.27,250.17,18.757]
[1732538548942,3.9958,250.26,250.17,18.757]
[1732538549139,20.0,250.27,250.17,18.757]
[1732538549350,23.9957,250.27,250.17,18.757]
[1732538551254,23.9957,250.27,250.17,15.1596]
[1732538552165,23.9957,250.27,250.17,18.7571]
[1732538553146,23.9957,250.27,250.17,15.1596]
[1732538555435,3.9957,250.27,250.18,3.5974]
[1732538555634,3.9957,250.27,250.17,15.1596]
[1732538556033,3.9957,250.27,250.17,18.757]
[1732538557263,3.9952,250.3,250.17,18.757]
[1732538558133,3.9952,250.3,250.2,7.9625282]
[1732538558458,3.995,250.31,250.22,16.5402]
[1732538561447,3.995,250.31,250.22,20.137]
[1732538562154,20.0,250.32,250.22,20.137]
[1732538562335,20.0,250.3,250.22,16.5402]
[1732538562541,33.9821,250.32,250.22,16.5402]
[1732538568463,20.0,250.28,250.17,100.0]
[1732538570556,3.9956,250.27,250.17,100.0]
[1732538578769,3.9956,250.27,250.18,22.1107]
[1732538581766,3.9956,250.27,250.18,25.708]
[1732538582162,3.995,250.31,250.19,23.776884]
[1732538582467,3.995,250.31,250.2,21.573]
[1732538582766,3.9945,250.34,250.22,7.9625282]
[1732538582954,3.9945,250.34,250.23,29.5355282]
[1732538583155,3.9945,250.34,250.25,22.6055]
[1732538584383,3.9944,250.36,250.25,22.6055]
[1732538584554,13.98,250.36,250.25,22.6055]
[1732538584754,20.0,250.33,250.25,22.6055]
[1732538587149,3.9948,250.32,250.25,22.6055]
[1732538592176,13.982,250.32,250.25,22.6055]
[1732538593979,20.0,250.25,250.17,100.0]
[1732538595468,20.0,250.23,250.17,100.0]
[1732538596781,3.9964,250.22,250.17,100.0]
[1732538598968,3.9956,250.27,250.18,22.9874]
[1732538600077,20.0,250.24,250.18,22.9874]
[1732538600387,20.0,250.21,250.18,22.9874]
[1732538601567,3.9968,250.2,250.18,22.9874]
[1732538603287,20.0,250.26,250.18,22.9874]
[1732538603488,23.776884,250.25,250.18,22.9874]
[1732538603784,20.0,250.22,250.18,22.9874]
[1732538604360,9.9904,250.24,250.18,22.9874]
[1732538605869,13.9865,250.24,250.18,22.9874]
[1732538608169,3.9961,250.24,250.18,22.9874]
[1732538609189,20.0,250.21,250.17,100.0]
[1732538609485,23.776884,250.2,250.17,100.0]
[1732538610273,3.9969,250.19,250.17,100.0]
[1732538610480,23.776884,250.18,250.17,100.0]
[1732538612690,27.773984,250.18,250.17,100.0]
[1732538613296,27.773984,250.18,250.17,56.2453703]
[1732538615701,3.9971,250.18,250.17,56.2453703]
[1732538616598,9.9904,250.24,250.17,56.2453703]
[1732538617103,23.776884,250.23,250.17,56.2453703]
[1732538617304,20.0,250.2,250.17,56.2453703]
[1732538617702,23.776884,250.19,250.17,56.2453703]
[1732538619097,3.9971,250.18,250.17,56.2453703]
[1732538621010,3.9968,250.2,250.17,56.2453703]
[1732538621749,13.9846,250.28,250.17,56.2453703]
[1732538622183,13.9846,250.28,250.18,22.194]
[1732538622384,13.9846,250.28,250.18,30.1565282]
[1732538622585,3.9955,250.28,250.19,7.9625282]
[1732538622781,3.9955,250.28,250.18,30.1565282]
[1732538622992,13.9798,250.36,250.18,30.1565282]
[1732538623195,3.69364547,250.35,250.18,22.194]
[1732538623391,3.69364547,250.35,250.18,25.3916]
[1732538623805,20.0,250.33,250.18,22.194]
[1732538624302,23.69364547,250.33,250.18,22.194]
[1732538624492,20.0,250.31,250.18,22.194]
[1732538624901,20.0,250.27,250.18,22.194]
[1732538625101,37.762284,250.26,250.18,22.194]
[1732538626324,20.0,250.23,250.18,22.194]
[1732538626704,23.776884,250.22,250.18,22.194]
[1732538628533,23.776884,250.2,250.18,22.194]
[1732538629713,27.773784,250.19,250.18,22.194]
[1732538629915,23.776884,250.19,250.18,22.194]
[1732538631627,27.773784,250.19,250.18,22.194]
[1732538634408,27.773784,250.19,250.17,56.2453703]
[1732538634621,23.776884,250.18,250.17,56.2453703]
[1732538636016,3.9968,250.2,250.17,56.2453703]
[1732538636531,3.9963,250.23,250.17,56.2453703]
[1732538637247,3.9963,250.23,250.18,22.2096]
[1732538637542,9.9878,250.31,250.18,22.2096]
[1732538638709,20.0,250.28,250.18,25.4072]
[1732538639516,20.0,250.28,250.19,21.7257]
[1732538639918,3.9956,250.27,250.19,21.7257]
[1732538640108,23.776884,250.26,250.19,21.7257]
[1732538641030,23.776884,250.27,250.19,21.7257]
[1732538641334,27.772484,250.27,250.19,21.7257]
[1732538644834,37.761684,250.27,250.19,21.7257]
[1732538648339,27.772484,250.27,250.19,21.7257]
[1732538649740,20.0,250.33,250.19,21.7257]
[1732538651133,20.0,250.29,250.19,21.7257]
[1732538652241,23.776884,250.28,250.19,21.7257]
[1732538652827,23.776884,250.26,250.19,21.7257]
[1732538654432,3.996,250.25,250.19,21.7257]
[1732538655544,3.9958,250.26,250.19,21.7257]
[1732538655720,23.776884,250.25,250.19,21.7257]
[1732538656753,3.9961,250.24,250.19,21.7257]
[1732538656942,27.772484,250.27,250.19,21.7257]
[1732538659220,3.9956,250.27,250.19,24.9232]
[1732538659750,3.9956,250.27,250.19,21.7257]
[1732538660829,9.9875,250.32,250.19,21.7257]
[1732538661024,23.776884,250.31,250.19,21.7257]
[1732538661847,23.9664,250.35,250.19,21.7257]
[1732538661848,23.776884,250.27,250.19,21.7257]
[1732538663143,23.776884,250.25,250.19,21.7257]
[1732538665344,27.772484,250.27,250.19,21.7257]
[1732538667528,23.9956,250.27,250.21,6.5329]
[1732538670059,23.776884,250.26,250.21,6.5329]
[1732538671343,3.996,250.25,250.21,6.5329]
[1732538673027,20.0,250.23,250.21,6.5329]
[1732538673230,20.0,250.22,250.2,15.7475]
[1732538675356,3.9966,250.21,250.2,15.7475]
[1732538678538,13.9882,250.21,250.17,56.2453703]
[1732538678763,23.776884,250.2,250.17,56.2453703]
[1732538679143,20.0,250.18,250.17,56.2453703]
[1732538679348,43.776884,250.18,250.17,56.2453703]
[1732538680662,47.773984,250.18,250.17,56.2453703]
[1732538688567,23.9971,250.18,250.17,56.2453703]
[1732538689044,3.9971,250.18,250.17,56.2453703]
[1732538690243,20.0,250.23,250.17,56.2453703]
[1732538690444,20.0,250.22,250.17,56.2453703]
[1732538691052,23.776884,250.21,250.17,56.2453703]
[1732538692380,23.776884,250.19,250.17,56.2453703]
[1732538692557,3.9968,250.2,250.17,56.2453703]
[1732538694962,23.776884,250.19,250.17,56.2453703]
[1732538697957,43.776884,250.18,250.17,56.2453703]
[1732538699758,47.773984,250.18,250.17,56.2453703]
[1732538703367,47.773984,250.18,250.17,12.4907406]
[1732538704562,49.99722454,250.18,250.17,12.4907406]
[1732538705957,49.99722454,250.18,250.17,8.47025906]
[1732538708989,47.773984,250.18,250.17,8.47025906]
[1732538712199,47.773984,250.18,250.15,1.0]
[1732538712377,23.776884,250.17,250.15,1.0]
[1732538712685,20.0,250.14,250.04,6.5219]
[1732538712984,23.776884,250.09,250.04,6.5219]
[1732538713566,25.77637975,250.17,250.04,6.5219]
[1732538713567,23.776884,250.13,250.04,6.5219]
[1732538713770,3.9985,250.09,250.04,6.5219]
[1732538713974,23.9985,250.09,250.04,6.5219]
[1732538714390,3.9985,250.09,250.04,6.5219]
[1732538715573,13.9949,250.09,250.04,6.5219]
[1732538715781,3.9988,250.07,250.04,6.5219]
[1732538717493,20.0,250.13,250.04,6.5219]
[1732538717494,3.998,250.12,250.04,6.5219]
[1732538717989,3.9976,250.15,250.04,6.5219]
[1732538718783,20.0,250.14,250.04,6.5219]
[1732538719495,20.0,250.12,250.04,6.5219]
[1732538719992,3.9982,250.11,250.04,6.5219]
[1732538723394,20.0,250.12,250.04,6.5219]
[1732538723572,23.9982,250.12,250.04,6.5219]
[1732538725005,3.9971,250.18,250.04,18.0839195]
[1732538725301,3.9971,250.18,250.06,6.3181]
[1732538725602,3.9971,250.18,250.07,16.4793]
[1732538726191,9.9924,250.19,250.07,16.4793]
[1732538727787,20.0,250.19,250.07,16.4793]
[1732538727987,20.0,250.19,250.07,24.4420195]
[1732538728377,20.0,250.19,250.07,28.0409195]
[1732538728902,20.0,250.19,250.07,20.0782]
[1732538729403,20.0,250.19,250.07,16.4793]
[1732538729704,3.9971,250.18,250.07,16.4793]
[1732538729908,3.9971,250.18,250.07,20.0782]
[1732538730201,3.9971,250.18,250.08,6.5439]
[1732538730503,3.9958,250.26,250.13,15.655]
[1732538730683,3.9958,250.26,250.14,6.5439]
[1732538731499,3.9958,250.26,250.14,14.5066195]
[1732538731695,9.9882,250.3,250.14,6.5439]
[1732538731900,20.0,250.27,250.14,6.5439]
[1732538732301,20.0,250.27,250.15,22.8509]
[1732538732479,9.9882,250.3,250.15,22.8509]
[1732538733611,3.9952,250.3,250.17,6.2405]
[1732538733915,3.9952,250.3,250.18,15.9313]
[1732538734207,3.9952,250.3,250.19,14.2032195]
[1732538734782,23.9952,250.3,250.19,14.2032195]
[1732538734985,3.9952,250.3,250.2,16.6589]
[1732538735185,3.9952,250.3,250.2,20.256]
[1732538735706,3.9952,250.3,250.2,16.6589]
[1732538736008,13.9832,250.3,250.2,16.6589]
[1732538737089,20.0,250.27,250.2,16.6589]
[1732538737615,3.9958,250.26,250.2,16.6589]
[1732538738587,3.9945,250.34,250.2,16.6589]
[1732538738790,20.0,250.32,250.2,16.6589]
[1732538739415,20.0,250.33,250.2,16.6589]
[1732538739589,20.0,250.33,250.21,22.495]
[1732538739790,3.9952,250.3,250.21,22.495]
[1732538740807,3.9949,250.32,250.21,26.0918]
[1732538741792,2.25304674,250.38,250.21,26.0918]
[1732538741994,20.0,250.34,250.23,22.1301]
[1732538742598,13.9792,250.37,250.23,22.1301]
[1732538743021,13.9764,250.42,250.23,25.7266]
[1732538743192,16.21343252,250.42,250.23,25.7266]
[1732538743524,23.776884,250.41,250.24,21.2684]
[1732538743820,20.0,250.38,250.24,21.2684]
[1732538744929,3.994,250.37,250.24,24.8649]
[1732538745294,20.0,250.36,250.24,24.8649]
[1732538746713,3.9944,250.35,250.24,24.8649]
[1732538747103,3.9944,250.35,250.24,21.2684]
[1732538747801,3.9944,250.35,250.25,21.4884]
[1732538749421,3.9944,250.35,250.25,25.0847]
[1732538753099,3.9944,250.35,250.25,21.4884]
[1732538754721,20.0,250.31,250.25,21.4884]
[1732538755305,20.0,250.32,250.25,21.4884]
[1732538756617,3.995,250.31,250.25,21.4884]
[1732538759005,20.0,250.32,250.25,21.4884]
[1732538759211,23.9948,250.32,250.25,21.4884]
[1732538762029,3.9948,250.32,250.25,21.4884]
[1732538762415,20.0,250.33,250.25,25.0847]
[1732538763404,3.9944,250.35,250.25,25.0847]
[1732538771243,3.9944,250.35,250.25,21.4884]
[1732538771244,20.0,250.33,250.25,21.4884]
[1732538771908,3.9944,250.35,250.25,21.4884]
[1732538772136,3.9944,250.35,250.25,25.0846]
[1732538773510,3.9944,250.35,250.25,21.4884]
[1732538774637,20.0,250.32,250.25,21.4884]
[1732538774828,3.995,250.31,250.25,21.4884]
[1732538776626,3.9947,250.33,250.25,25.0847]
[1732538776949,3.9944,250.35,250.25,25.0847]
[1732538777836,23.776884,250.38,250.25,25.0847]
[1732538778241,20.0,250.35,250.25,21.4884]
[1732538779548,20.0,250.35,250.25,25.0847]
[1732538780050,3.9945,250.34,250.25,25.0847]
[1732538783828,23.9944,250.36,250.25,25.0847]
[1732538786432,22.67699013,250.36,250.25,25.0847]
[1732538787655,22.67699013,250.36,250.25,21.4884]
[1732538787829,3.47408144,250.45,250.26,23.776884]
[1732538788031,13.9755,250.44,250.29,22.9496]
[1732538788943,13.972,250.5,250.3,3.5956]
[1732538789135,20.0,250.47,250.3,3.5956]
[1732538789458,20.0,250.43,250.3,3.5956]
[1732538790567,3.9932,250.42,250.3,3.5956]
[1732538790730,23.9932,250.42,250.3,3.5956]
[1732538790927,23.9932,250.42,250.29,22.9496]
[1732538792660,23.9932,250.42,250.29,26.5454]
[1732538793361,20.0,250.39,250.29,22.9496]
[1732538795554,3.9939,250.38,250.29,22.9496]
[1732538797140,9.9846,250.39,250.29,22.9496]
[1732538804065,3.9934,250.41,250.3,23.776884]
[1732538804373,20.0,250.4,250.3,23.776884]
[1732538805171,3.9937,250.39,250.3,23.776884]
[1732538807084,3.9937,250.39,250.32,23.776884]
[1732538808368,3.9937,250.39,250.32,27.372184]
[1732538808782,3.9937,250.39,250.32,23.776884]
[1732538809688,3.9937,250.39,250.31,22.5278]
[1732538814881,3.9937,250.39,250.32,23.776884]
[1732538815551,3.9932,250.42,250.32,23.776884]
[1732538816171,3.9932,250.42,250.32,31.7396035]
[1732538816977,9.9814,250.47,250.37,31.7396035]
[1732538816978,3.9931,250.43,250.37,31.7396035]
[1732538817282,13.9717,250.51,250.39,6.0518]
[1732538818083,3.28124811,250.57,250.39,6.0518]
[1732538818287,22.2038262,250.55,250.39,6.0518]
[1732538819162,20.0,250.52,250.39,6.0518]
[1732538819689,20.0,250.52,250.4,23.776884]
[1732538820883,13.9714,250.51,250.4,23.776884]
[1732538821068,20.0,250.48,250.39,6.0518]
[1732538823061,13.9736,250.47,250.39,6.0518]
[1732538823681,3.9924,250.47,250.39,6.0518]
[1732538828479,9.9783,250.55,250.41,7.9627195]
[1732538828665,20.0,250.52,250.43,15.125]
[1732538828865,20.0,250.52,250.44,6.0493]
[1732538829483,3.9918,250.51,250.44,6.0493]
[1732538830165,3.9918,250.51,250.45,23.776884]
[1732538830361,3.9913,250.54,250.45,23.776884]
[1732538831194,3.9913,250.54,250.46,15.0549]
[1732538831390,3.9912,250.56,250.49,23.776884]
[1732538831580,13.9647,250.63,250.5,15.0549]
[1732538832082,33.9144,250.63,250.5,15.0549]
[1732538832476,3.28124811,250.62,250.5,15.0549]
[1732538832665,33.9144,250.63,250.5,15.0549]
[1732538832990,20.0,250.6,250.5,15.0549]
[1732538833891,20.0,250.56,250.5,15.0549]
[1732538835877,20.0,250.61,250.5,15.0549]
[1732538836195,20.0,250.59,250.5,15.0549]
[1732538836988,13.9675,250.58,250.5,15.0549]
[1732538837197,20.0,250.55,250.5,15.0549]
[1732538838399,3.9913,250.54,250.5,15.0549]
[1732538840592,19.9505,250.62,250.5,15.0549]
[1732538840898,20.0,250.59,250.5,15.0549]
[1732538841885,3.9907,250.58,250.51,23.776884]
[1732538842083,3.9899,250.63,250.52,15.1766]
[1732538842277,3.9899,250.63,250.53,23.776884]
[1732538842603,13.9647,250.63,250.53,23.776884]
[1732538842989,33.9144,250.63,250.52,15.1766]
[1732538843295,20.0,250.6,250.52,15.1766]
[1732538844196,3.9905,250.59,250.52,15.1766]
[1732538849301,13.9669,250.59,250.52,15.1766]
[1732538849778,13.9669,250.59,250.42,9.99199972]
[1732538849779,13.9669,250.59,250.45,22.2332]
[1732538849978,13.9669,250.59,250.48,23.776884]
[1732538850205,3.9905,250.59,250.5,23.776884]
[1732538850394,3.9905,250.59,250.52,23.776884]
[1732538851589,13.9619,250.68,250.52,23.776884]
[1732538852104,20.0,250.65,250.52,23.776884]
[1732538852485,13.9641,250.64,250.52,23.776884]
[1732538853710,9.9744,250.64,250.52,23.776884]
[1732538854789,20.0,250.61,250.51,22.2332]
[1732538855909,13.9664,250.6,250.51,22.2332]
[1732538856314,20.0,250.57,250.51,22.2332]
[1732538857386,13.9664,250.6,250.51,22.2332]
[1732538857786,9.976,250.6,250.51,22.2332]
[1732538859787,20.0,250.61,250.52,23.776884]
[1732538860196,3.9901,250.62,250.54,23.776884]
[1732538861499,9.9729,250.68,250.54,23.776884]
[1732538861942,9.9729,250.68,250.53,21.8819]
[1732538862909,20.0,250.65,250.53,21.8819]